fUST/lending_fUST_20250704
["ID","MTS","AMOUNT","RATE_DAILY","PERIOD"]
[369429980,1751572232217,-473.96188062,0.00016438,2]
[369429981,1751572232226,-460.0,0.00016438,2]
[369429982,1751572232236,-956.73,0.00016438,2]
[369429983,1751572232245,-460.0,0.00016438,2]
[369429984,1751572232255,-460.0,0.00016438,2]
[369429985,1751572232265,-1077.55,0.00016438,2]
[369429986,1751572232287,-460.0,0.00016438,2]
[369429987,1751572232297,-460.0,0.00016438,2]
[369429988,1751572232307,-460.0,0.00016438,2]
[369429989,1751572232318,-460.0,0.00016438,2]
[369429990,1751572232327,-460.0,0.00016438,2]
[369429991,1751572232338,-460.0,0.00016438,2]
[369429992,1751572232348,-460.0,0.00016438,2]
[369429993,1751572232359,-460.0,0.00016438,2]
[369429995,1751572232368,-460.0,0.00016438,2]
[369429997,1751572232377,-460.0,0.00016438,2]
[369429998,1751572232387,-460.0,0.00016438,2]
[369429999,1751572232398,-460.0,0.00016438,2]
[369430000,1751572232409,-460.0,0.00016438,2]
[369430001,1751572232419,-460.0,0.00016438,2]
[369430002,1751572232430,-811.76,0.00016438,2]
[369430003,1751572232442,-460.0,0.00016438,2]
[369430004,1751572232453,-460.0,0.00016438,2]
[369430005,1751572232463,-460.0,0.00016438,2]
[369430006,1751572232472,-460.0,0.00016438,2]
[369430007,1751572232482,-962.93,0.00016438,2]
[369430008,1751572232492,-460.0,0.00016438,2]
[369430009,1751572232502,-857.31,0.00016438,2]
[369430010,1751572232512,-460.0,0.00016438,2]
[369430011,1751572232521,-460.0,0.00016438,2]
[369430012,1751572232531,-460.0,0.00016438,2]
[369430013,1751572232541,-460.0,0.00016438,2]
[369430014,1751572232551,-460.0,0.00016438,2]
[369430015,1751572232561,-460.0,0.00016438,2]
[369430016,1751572232571,-460.0,0.00016438,2]
[369430017,1751572232583,-460.0,0.00016438,2]
[369430018,1751572232593,-460.0,0.00016438,2]
[369430019,1751572232604,-378.78890506,0.00016438,2]
[369430033,1751572237907,-81.21109494,0.00016438,2]
[369430034,1751572237917,-413.91131706,0.00016438,2]
[369430035,1751572238014,-46.08868294,0.00016438,2]
[369430036,1751572238025,-460.0,0.00016438,2]
[369430037,1751572238034,-460.0,0.00016438,2]
[369430038,1751572238044,-565.9047708,0.00016438,2]
[369430039,1751572238056,-460.0,0.00016438,2]
[369430040,1751572238066,-460.0,0.00016438,2]
[369430041,1751572238076,-460.0,0.00016438,2]
[369430042,1751572238085,-460.0,0.00016438,2]
[369430043,1751572238095,-460.0,0.00016438,2]
[369430044,1751572238105,-460.0,0.00016438,2]
[369430045,1751572238115,-460.0,0.00016438,2]
[369430046,1751572238124,-460.0,0.00016438,2]
[369430047,1751572238136,-460.0,0.00016438,2]
[369430048,1751572238146,-460.0,0.00016438,2]
[369430049,1751572238155,-460.0,0.00016438,2]
[369430050,1751572238165,-460.0,0.00016438,2]
[369430051,1751572238175,-460.0,0.00016438,2]
[369430052,1751572238185,-650.69,0.00016438,2]
[369430053,1751572238199,-460.0,0.00016438,2]
[369430054,1751572238209,-460.0,0.00016438,2]
[369430055,1751572238219,-460.0,0.00016438,2]
[369430056,1751572238229,-460.0,0.00016438,2]
[369430057,1751572238238,-460.0,0.00016438,2]
[369430058,1751572238247,-460.0,0.00016438,2]
[369430059,1751572238258,-460.0,0.00016438,2]
[369430060,1751572238268,-460.0,0.00016438,2]
[369430061,1751572238279,-460.0,0.00016438,2]
[369430062,1751572238289,-460.0,0.00016438,2]
[369430063,1751572238299,-460.0,0.00016438,2]
[369430064,1751572238309,-460.0,0.00016438,2]
[369430065,1751572238319,-460.0,0.00016438,2]
[369430066,1751572238329,-378.03381124,0.00016438,2]
[369430067,1751572238339,-460.0,0.00016438,2]
[369430068,1751572238349,-460.0,0.00016438,2]
[369430069,1751572238358,-316.94377066,0.00016541,2]
[369430070,1751572238368,-460.0,0.00016541,2]
[369430071,1751572238378,-460.0,0.00016541,2]
[369430072,1751572238387,-460.0,0.00016541,2]
[369430073,1751572238397,-424.6179984,0.00016541,2]
[369430074,1751572238407,-476.24,0.00016541,2]
[369430075,1751572238416,-460.0,0.00016541,2]
[369430076,1751572238426,-460.0,0.00016541,2]
[369430077,1751572238436,-460.0,0.00016541,2]
[369430078,1751572238446,-460.0,0.00016541,2]
[369430079,1751572238455,-460.0,0.00016541,2]
[369430080,1751572238465,-460.0,0.00016541,2]
[369430081,1751572238475,-460.0,0.00016541,2]
[369430082,1751572238485,-460.0,0.00016541,2]
[369430083,1751572238496,-460.0,0.00016541,2]
[369430084,1751572238506,-460.0,0.00016541,2]
[369430085,1751572238516,-460.0,0.00016541,2]
[369430086,1751572238525,-460.0,0.00016541,2]
[369430087,1751572238535,-460.0,0.00016708,2]
[369430088,1751572238544,-372.6446167,0.00016708,2]
[369430089,1751572238554,-348.00964991,0.00016708,2]
[369430090,1751572238564,-335.32299746,0.00016708,2]
[369430091,1751572238574,-460.0,0.0001671,2]
[369430092,1751572238585,-460.0,0.0001671,2]
[369430093,1751572238595,-460.0,0.0001671,2]
[369430094,1751572238606,-460.0,0.0001671,2]
[369430095,1751572238615,-460.0,0.0001671,2]
[369430096,1751572238624,-460.0,0.0001671,2]
[369430097,1751572238633,-460.0,0.0001671,2]
[369430098,1751572238643,-969.46,0.0001671,2]
[369430099,1751572238652,-460.0,0.0001671,2]
[369430100,1751572238662,-460.0,0.0001671,2]
[369430101,1751572238671,-460.0,0.0001671,2]
[369430102,1751572238681,-460.0,0.0001671,2]
[369430103,1751572238690,-176.66188115,0.00016711,2]
[369430104,1751572238699,-460.0,0.00016711,2]
[369430105,1751572238709,-590.17,0.00016711,2]
[369430106,1751572238718,-460.0,0.00016711,2]
[369430107,1751572238727,-460.0,0.00016711,2]
[369430108,1751572238737,-546.46286951,0.00016711,2]
[369430109,1751572238746,-460.0,0.00016711,2]
[369430110,1751572238755,-460.0,0.00016711,2]
[369430111,1751572238764,-518.96,0.00016711,2]
[369430112,1751572238773,-460.0,0.00016711,2]
[369430113,1751572238783,-460.0,0.00016711,2]
[369430114,1751572238792,-460.0,0.00016711,2]
[369430115,1751572238802,-460.0,0.00016711,2]
[369430116,1751572238811,-460.0,0.00016712,2]
[369430117,1751572238821,-459.0,0.00016712,2]
[369430118,1751572238830,-956.73,0.00016712,2]
[369430119,1751572238840,-460.0,0.00016712,2]
[369430120,1751572238849,-1077.55,0.00016712,2]
[369430121,1751572238858,-460.0,0.00016712,2]
[369430122,1751572238868,-460.0,0.00016712,2]
[369430123,1751572238878,-460.0,0.00016712,2]
[369430124,1751572238887,-460.0,0.00016712,2]
[369430125,1751572238897,-460.0,0.00016712,2]
[369430126,1751572238907,-460.0,0.00016712,2]
[369430127,1751572238916,-460.0,0.00016712,2]
[369430128,1751572238926,-460.0,0.00016712,2]
[369430129,1751572238937,-460.0,0.00016712,2]
[369430130,1751572238947,-811.76,0.00016712,2]
[369430131,1751572238957,-460.0,0.00016712,2]
[369430132,1751572238967,-962.93,0.00016712,2]
[369430133,1751572238977,-857.31,0.00016712,2]
[369430134,1751572238987,-577.58,0.00016712,2]
[369430135,1751572238997,-460.0,0.00016712,2]
[369430136,1751572239006,-460.0,0.00016712,2]
[369430137,1751572239016,-460.0,0.00016712,2]
[369430138,1751572239025,-460.0,0.00016712,2]
[369430139,1751572239034,-460.0,0.00016712,2]
[369430140,1751572239044,-495.78,0.00016712,2]
[369430141,1751572239054,-462.64,0.00016712,2]
[369430142,1751572239066,-460.0,0.00016712,2]
[369430143,1751572239077,-460.0,0.00016712,2]
[369430144,1751572239087,-460.0,0.00016712,2]
[369430145,1751572239096,-460.0,0.00016712,2]
[369430146,1751572239107,-460.0,0.00016712,2]
[369430147,1751572239117,-460.0,0.00016712,2]
[369430148,1751572239127,-460.0,0.00016712,2]
[369430149,1751572239138,-460.0,0.00016712,2]
[369430150,1751572239148,-650.69,0.00016712,2]
[369430151,1751572239158,-460.0,0.00016712,2]
[369430152,1751572239167,-460.0,0.00016712,2]
[369430153,1751572239177,-583.5,0.00016712,2]
[369430154,1751572239187,-460.0,0.00016712,2]
[369430155,1751572239197,-460.0,0.00016712,2]
[369430156,1751572239206,-460.0,0.00016712,2]
[369430157,1751572239216,-194.38,0.00016815,2]
[369430158,1751572239226,-1891.08668273,0.000169,2]
[369430159,1751572239236,-151.0,0.00016974,2]
[369430160,1751572239245,-615.20774404,0.00016984,2]
[369430161,1751572239256,-1160.63024026,0.00016984,2]
[369430162,1751572239266,-460.0,0.00016984,2]
[369430163,1751572239275,-460.0,0.00016984,2]
[369430164,1751572239289,-460.0,0.00016984,2]
[369430165,1751572239298,-195.52314482,0.00016984,2]
[369430166,1751572239308,-585.51,0.00016984,2]
[369430167,1751572239318,-460.0,0.00016984,2]
[369430168,1751572239328,-460.0,0.00016984,2]
[369430169,1751572239338,-460.0,0.00016984,2]
[369430170,1751572239348,-278.98,0.00016984,2]
[369430172,1751572239357,-460.0,0.00016984,2]
[369430174,1751572239367,-460.0,0.00016984,2]
[369430176,1751572239377,-460.0,0.00016984,2]
[369430177,1751572239387,-460.0,0.00016984,2]
[369430178,1751572239398,-460.0,0.00016984,2]
[369430179,1751572239407,-460.0,0.00016984,2]
[369430180,1751572239417,-460.0,0.00016984,2]
[369430181,1751572239427,-587.75,0.00016984,2]
[369430182,1751572239437,-460.0,0.00016984,2]
[369430183,1751572239446,-460.0,0.00016984,2]
[369430184,1751572239457,-460.0,0.00016984,2]
[369430185,1751572239467,-460.0,0.00016984,2]
[369430186,1751572239476,-460.0,0.00016984,2]
[369430187,1751572239486,-460.0,0.00016984,2]
[369430188,1751572239496,-460.0,0.00016984,2]
[369430189,1751572239507,-460.0,0.00016984,2]
[369430190,1751572239516,-460.0,0.00016984,2]
[369430191,1751572239529,-460.0,0.00016984,2]
[369430192,1751572239539,-460.0,0.00016984,2]
[369430193,1751572239549,-460.0,0.00016984,2]
[369430194,1751572239558,-218.62594825,0.00016984,2]
[369430195,1751572239569,-460.0,0.00016984,2]
[369430196,1751572239579,-460.0,0.00016984,2]
[369430197,1751572239590,-460.0,0.00016984,2]
[369430198,1751572239601,-460.0,0.00016984,2]
[369430199,1751572239611,-430.0,0.00016984,2]
[369430200,1751572239621,-460.0,0.00016984,2]
[369430201,1751572239631,-44.02015439,0.00016984,2]
[369430202,1751572239645,-480.09874531,0.00016984,2]
[369430203,1751572239655,-460.0,0.00016984,2]
[369430204,1751572239665,-460.0,0.00016984,2]
[369430205,1751572239675,-460.0,0.00016984,2]
[369430206,1751572239684,-460.0,0.00016984,2]
[369430207,1751572239694,-460.0,0.00016984,2]
[369430209,1751572239704,-460.0,0.00016984,2]
[369430210,1751572239714,-460.0,0.00016984,2]
[369430211,1751572239725,-432.31898986,0.00016984,2]
[369430212,1751572239735,-460.0,0.00016984,2]
[369430213,1751572239744,-460.0,0.00016984,2]
[369430214,1751572239753,-728.29,0.00016984,2]
[369430216,1751572239763,-305.7921683,0.00016984,2]
[369430218,1751572239772,-460.0,0.00016984,2]
[369430220,1751572239787,-460.0,0.00016984,2]
[369430221,1751572239798,-460.0,0.00016984,2]
[369430222,1751572239807,-460.0,0.00016984,2]
[369430223,1751572239816,-460.0,0.00016984,2]
[369430224,1751572239826,-460.0,0.00016984,2]
[369430225,1751572239836,-460.0,0.00016984,2]
[369430226,1751572239846,-460.0,0.00016984,2]
[369430227,1751572239856,-460.0,0.00016984,2]
[369430228,1751572239865,-460.0,0.00016984,2]
[369430229,1751572239874,-460.0,0.00016984,2]
[369430230,1751572239884,-969.46,0.00016984,2]
[369430247,1751572240066,-985.7,0.00016984,2]
[369430249,1751572240076,-460.0,0.00016984,2]
[369430251,1751572240086,-460.0,0.00016984,2]
[369430253,1751572240096,-460.0,0.00016984,2]
[369430255,1751572240105,-460.0,0.00016984,2]
[369430257,1751572240115,-460.0,0.00016984,2]
[369430259,1751572240125,-460.0,0.00016984,2]
[369430261,1751572240136,-460.0,0.00016984,2]
[369430263,1751572240145,-460.0,0.00016984,2]
[369430265,1751572240155,-463.00665894,0.00016984,2]
[369430267,1751572240164,-460.0,0.00016984,2]
[369430269,1751572240173,-460.0,0.00016984,2]
[369430271,1751572240182,-460.0,0.00016984,2]
[369430273,1751572240192,-460.0,0.00016986,2]
[369430275,1751572240202,-956.73,0.00016986,2]
[369430277,1751572240212,-460.0,0.00016986,2]
[369430279,1751572240221,-986.39925088,0.00016986,2]
[369430281,1751572240233,-91.15074912,0.00016986,2]
[369430283,1751572240242,-460.0,0.00016986,2]
[369430285,1751572240252,-460.0,0.00016986,2]
[369430287,1751572240261,-460.0,0.00016986,2]
[369430289,1751572240271,-460.0,0.00016986,2]
[369430291,1751572240282,-563.83,0.00016986,2]
[369430293,1751572240291,-163.11282189,0.00016986,2]
[369430295,1751572240301,-460.0,0.00016986,2]
[369430297,1751572240311,-497.67325767,0.00016986,2]
[369430299,1751572240321,-460.0,0.00016986,2]
[369430301,1751572240331,-811.76,0.00016986,2]
[369430303,1751572240340,-460.0,0.00016986,2]
[369430305,1751572240350,-753.15734539,0.00016986,2]
[369430308,1751572240361,-209.77265461,0.00016986,2]
[369430310,1751572240371,-857.31,0.00016986,2]
[369430312,1751572240381,-460.0,0.00016986,2]
[369430314,1751572240392,-460.0,0.00016986,2]
[369430316,1751572240403,-474.39,0.00016986,2]
[369430318,1751572240412,-460.0,0.00016986,2]
[369430320,1751572240422,-460.0,0.00016986,2]
[369430322,1751572240431,-460.0,0.00016986,2]
[369430324,1751572240441,-460.0,0.00016986,2]
[369430326,1751572240451,-460.0,0.00016986,2]
[369430328,1751572240460,-650.69,0.00016986,2]
[369430330,1751572240469,-460.0,0.00016986,2]
[369430332,1751572240479,-460.0,0.00016986,2]
[369430334,1751572240488,-262.62,0.00016986,2]
[369430336,1751572240498,-460.0,0.00016986,2]
[369430339,1751572240508,-178.2434255,0.00017148,2]
[369430341,1751572240518,-366.4782688,0.00017157,2]
[369430343,1751572240527,-365.3960954,0.00017157,2]
[369430345,1751572240537,-1891.08668246,0.00017176,2]
[369430347,1751572240546,-510.78733226,0.00017258,2]
[369430349,1751572240556,-460.0,0.00017258,2]
[369430351,1751572240565,-460.0,0.00017258,2]
[369430353,1751572240575,-460.0,0.00017258,2]
[369430355,1751572240585,-460.0,0.00017258,2]
[369430357,1751572240599,-460.0,0.00017258,2]
[369430359,1751572240609,-460.0,0.00017258,2]
[369430361,1751572240618,-460.0,0.00017258,2]
[369430363,1751572240628,-460.0,0.00017258,2]
[369430365,1751572240638,-460.0,0.00017258,2]
[369430367,1751572240648,-460.0,0.00017258,2]
[369430369,1751572240657,-500.6,0.00017258,2]
[369430371,1751572240667,-728.29,0.00017258,2]
[369430373,1751572240676,-460.0,0.00017258,2]
[369430375,1751572240685,-535.5,0.00017258,2]
[369430377,1751572240694,-460.0,0.00017258,2]
[369430379,1751572240703,-460.0,0.00017258,2]
[369430381,1751572240712,-460.0,0.00017258,2]
[369430383,1751572240722,-460.0,0.00017258,2]
[369430385,1751572240731,-460.0,0.00017258,2]
[369430387,1751572240740,-969.46,0.00017258,2]
[369430389,1751572240750,-985.7,0.00017258,2]
[369430391,1751572240759,-460.0,0.00017258,2]
[369430393,1751572240769,-460.0,0.00017258,2]
[369430395,1751572240778,-460.0,0.00017258,2]
[369430397,1751572240787,-460.0,0.00017258,2]
[369430399,1751572240796,-460.0,0.00017258,2]
[369430401,1751572240805,-956.73,0.0001726,2]
[369430403,1751572240815,-460.0,0.0001726,2]
[369430405,1751572240824,-1077.55,0.0001726,2]
[369430407,1751572240834,-460.0,0.0001726,2]
[369430409,1751572240843,-460.0,0.0001726,2]
[369430411,1751572240852,-460.0,0.0001726,2]
[369430413,1751572240861,-460.0,0.0001726,2]
[369430415,1751572240870,-460.0,0.0001726,2]
[369430417,1751572240880,-811.76,0.0001726,2]
[369430419,1751572240889,-460.0,0.0001726,2]
[369430421,1751572240899,-962.93,0.0001726,2]
[369430423,1751572240909,-857.31,0.0001726,2]
[369430425,1751572240918,-460.0,0.0001726,2]
[369430427,1751572240928,-460.0,0.0001726,2]
[369430429,1751572240937,-460.0,0.0001726,2]
[369430431,1751572240946,-460.0,0.0001726,2]
[369430433,1751572240955,-460.0,0.0001726,2]
[369430435,1751572240965,-650.69,0.0001726,2]
[369430437,1751572240974,-460.0,0.0001726,2]
[369430439,1751572240984,-460.0,0.0001726,2]
[369430441,1751572240993,-866.12666327,0.00017436,2]
[369430443,1751572241003,-1891.08668246,0.00017452,2]
[369430445,1751572241012,-420.0,0.00017475,2]
[369430447,1751572241021,-500.0,0.00017497,2]
[369430449,1751572241032,-517.3753188,0.00017497,2]
[369430451,1751572241041,-502.65178596,0.00017521,2]
[369430453,1751572241051,-500.0,0.00017521,2]
[369430455,1751572241061,-460.0,0.00017532,2]
[369430457,1751572241073,-460.0,0.00017532,2]
[369430459,1751572241083,-460.0,0.00017532,2]
[369430461,1751572241093,-460.0,0.00017532,2]
[369430463,1751572241103,-460.0,0.00017532,2]
[369430465,1751572241112,-728.29,0.00017532,2]
[369430467,1751572241121,-234.56,0.00017532,2]
[369430469,1751572241131,-460.0,0.00017532,2]
[369430471,1751572241143,-460.0,0.00017532,2]
[369430473,1751572241154,-969.46,0.00017532,2]
[369430476,1751572241163,-985.7,0.00017532,2]
[369430478,1751572241172,-460.0,0.00017532,2]
[369430480,1751572241182,-460.0,0.00017532,2]
[369430482,1751572241191,-460.0,0.00017532,2]
[369430484,1751572241200,-460.0,0.00017532,2]
[369430486,1751572241209,-151.0,0.00017533,2]
[369430488,1751572241219,-956.73,0.00017534,2]
[369430490,1751572241229,-460.0,0.00017534,2]
[369430492,1751572241239,-1077.55,0.00017534,2]
[369430494,1751572241248,-460.0,0.00017534,2]
[369430496,1751572241257,-460.0,0.00017534,2]
[369430498,1751572241267,-177.16,0.00017534,2]
[369430500,1751572241278,-811.76,0.00017534,2]
[369430502,1751572241287,-962.93,0.00017534,2]
[369430504,1751572241296,-857.31,0.00017534,2]
[369430506,1751572241306,-460.0,0.00017534,2]
[369430508,1751572241316,-460.0,0.00017534,2]
[369430510,1751572241326,-547.6,0.00017534,2]
[369430512,1751572241335,-460.0,0.00017534,2]
[369430514,1751572241345,-460.0,0.00017534,2]
[369430516,1751572241354,-650.69,0.00017534,2]
[369430518,1751572241363,-460.0,0.00017534,2]
[369430520,1751572241373,-151.0,0.00017536,2]
[369430522,1751572241383,-151.0,0.00017536,2]
[369430524,1751572241392,-151.0,0.00017536,2]
[369430526,1751572241402,-406.873522,0.00017536,2]
[369430528,1751572241412,-406.873522,0.00017536,2]
[369430530,1751572241422,-151.0,0.00017536,2]
[369430532,1751572241431,-207.4,0.00017536,2]
[369430534,1751572241440,-500.0,0.00017536,2]
[369430536,1751572241449,-500.0,0.00017536,2]
[369430538,1751572241459,-500.0,0.00017536,2]
[369430540,1751572241469,-5000.0,0.00017536,2]
[369430542,1751572241478,-500.0,0.00017536,2]
[369430544,1751572241487,-500.0,0.00017536,2]
[369430546,1751572241496,-500.0,0.00017536,2]
[369430548,1751572241506,-500.0,0.00017536,2]
[369430550,1751572241515,-500.0,0.00017536,2]
[369430552,1751572241524,-500.0,0.00017536,2]
[369430555,1751572241535,-500.0,0.00017536,2]
[369430556,1751572241545,-500.0,0.00017536,2]
[369430558,1751572241554,-500.0,0.00017536,2]
[369430561,1751572241563,-500.0,0.00017536,2]
[369430563,1751572241573,-500.0,0.00017536,2]
[369430565,1751572241582,-500.0,0.00017536,2]
[369430567,1751572241591,-500.0,0.00017536,2]
[369430569,1751572241600,-500.0,0.00017536,2]
[369430571,1751572241609,-500.0,0.00017536,2]
[369430573,1751572241619,-500.0,0.00017536,2]
[369430575,1751572241628,-500.0,0.00017536,2]
[369430577,1751572241638,-500.0,0.00017536,2]
[369430579,1751572241647,-500.0,0.00017536,2]
[369430581,1751572241656,-500.0,0.00017557,2]
[369430583,1751572241666,-1045.02057708,0.00017558,2]
[369430585,1751572241679,-215.07701991,0.00017685,2]
[369430587,1751572241688,-847.79783075,0.00017685,2]
[369430589,1751572241697,-230.37558374,0.00017685,2]
[369430591,1751572241706,-160.0,0.00017685,2]
[369430593,1751572241716,-160.0,0.00017685,2]
[369430595,1751572241725,-160.0,0.00017685,2]
[369430597,1751572241734,-837.389109,0.00017685,2]
[369430599,1751572241743,-213.94585247,0.00017685,2]
[369430601,1751572241752,-12575.98004106,0.00017685,2]
[369430603,1751572241762,-160.0,0.00017685,2]
[369430605,1751572241772,-1891.08668246,0.00017728,2]
[369430607,1751572241783,-460.0,0.00017806,2]
[369430609,1751572241792,-460.0,0.00017806,2]
[369430611,1751572241801,-460.0,0.00017806,2]
[369430613,1751572241811,-460.0,0.00017806,2]
[369430615,1751572241821,-728.29,0.00017806,2]
[369430617,1751572241832,-460.0,0.00017806,2]
[369430619,1751572241841,-460.0,0.00017806,2]
[369430621,1751572241851,-969.46,0.00017806,2]
[369430623,1751572241861,-985.7,0.00017806,2]
[369430625,1751572241871,-460.0,0.00017806,2]
[369430627,1751572241880,-460.0,0.00017806,2]
[369430629,1751572241890,-460.0,0.00017806,2]
[369430631,1751572241899,-460.0,0.00017806,2]
[369430633,1751572241908,-956.73,0.00017808,2]
[369430635,1751572241918,-186.6,0.00017808,2]
[369430637,1751572241926,-1077.55,0.00017808,2]
[369430639,1751572241936,-224.32,0.00017808,2]
[369430641,1751572241945,-460.0,0.00017808,2]
[369430643,1751572241955,-811.76,0.00017808,2]
[369430646,1751572241965,-486.18550936,0.00017808,2]
[369430660,1751572242086,-151.0,0.00016974,2]
[369430662,1751572242096,-451.76483606,0.00017808,2]
[369430664,1751572242108,-24.97965458,0.00017808,2]
[369430666,1751572242118,-274.90772664,0.00017808,2]
[369430668,1751572242129,-582.40227336,0.00017808,2]
[369430670,1751572242138,-460.0,0.00017808,2]
[369430672,1751572242147,-151.0,0.00017808,2]
[369430675,1751572242156,-460.0,0.00017808,2]
[369430677,1751572242166,-460.0,0.00017808,2]
[369430679,1751572242176,-460.0,0.00017808,2]
[369430681,1751572242185,-650.69,0.00017808,2]
[369430683,1751572242195,-1891.08668246,0.00018003,2]
[369430685,1751572242205,-318.7964016,0.00018043,2]
[369430687,1751572242214,-159.3982008,0.00018043,2]
[369430689,1751572242223,-306.0,0.00018043,2]
[369430691,1751572242232,-159.3982008,0.00018043,2]
[369430693,1751572242241,-318.4170737,0.00018043,2]
[369430695,1751572242252,-306.0,0.00018043,2]
[369430697,1751572242261,-413.200851,0.00018069,2]
[369430699,1751572242270,-318.7964016,0.00018069,2]
[369430701,1751572242280,-159.3982008,0.00018069,2]
[369430703,1751572242289,-575.6969649,0.00018069,2]
[369430705,1751572242297,-153.0,0.00018069,2]
[369430707,1751572242307,-153.0,0.00018069,2]
[369430709,1751572242317,-575.6969649,0.00018069,2]
[369430711,1751572242326,-575.6969649,0.00018069,2]
[369430713,1751572242334,-177.6570982,0.00018069,2]
[369430715,1751572242343,-575.6969649,0.00018069,2]
[369430717,1751572242352,-534.77,0.0001808,2]
[369430718,1751572242361,-467.11,0.0001808,2]
[369430721,1751572242370,-151.0,0.0001808,2]
[369430723,1751572242380,-465.47,0.0001808,2]
[369430725,1751572242389,-728.29,0.0001808,2]
[369430727,1751572242398,-460.0,0.0001808,2]
[369430729,1751572242407,-460.0,0.0001808,2]
[369430731,1751572242416,-969.46,0.0001808,2]
[369430733,1751572242425,-928.52370112,0.0001808,2]
[369430741,1751572242495,-151.0,0.00016974,2]
[369430743,1751572242504,-151.0,0.00016974,2]
[369430745,1751572242514,-153.96,0.00017534,2]
[369430747,1751572242523,-57.17629888,0.0001808,2]
[369430749,1751572242533,-460.0,0.0001808,2]
[369430751,1751572242542,-460.0,0.0001808,2]
[369430753,1751572242551,-164.46289783,0.0001808,2]
[369430755,1751572242562,-157.23710217,0.0001808,2]
[369430757,1751572242570,-387.43132902,0.0001808,2]
[369430759,1751572242581,-72.56867098,0.0001808,2]
[369430761,1751572242590,-151.0,0.00018081,2]
[369430763,1751572242599,-151.0,0.00018081,2]
[369430765,1751572242610,-238.313456,0.00018081,2]
[369430767,1751572242619,-151.0,0.00018082,2]
[369430769,1751572242628,-269.263627,0.00018082,2]
[369430771,1751572242636,-175.471602,0.00018082,2]
[369430773,1751572242645,-956.73,0.00018082,2]
[369430775,1751572242654,-1077.55,0.00018082,2]
[369430777,1751572242663,-460.0,0.00018082,2]
[369430780,1751572242672,-764.45200589,0.00018082,2]
[369430783,1751572242683,-47.30799411,0.00018082,2]
[369430785,1751572242692,-406.873522,0.00018082,2]
[369430787,1751572242700,-406.873522,0.00018082,2]
[369430789,1751572242710,-13.80872368,0.00018082,2]
[369430970,1751572244537,-186.63424388,0.00016338,2]
[369430973,1751572244546,-186.63424386,0.0001639,2]
[369430975,1751572244556,-186.63424386,0.00016441,2]
[369430977,1751572244566,-151.0,0.00016974,2]
[369430979,1751572244575,-151.0,0.00016974,2]
[369430981,1751572244584,-142.04413482,0.00016974,2]
[369430983,1751572244596,-8.95586518,0.00016974,2]
[369430986,1751572244605,-151.0,0.00016974,2]
[369430988,1751572244615,-151.0,0.00016974,2]
[369430990,1751572244625,-151.0,0.00016974,2]
[369430992,1751572244634,-949.12127632,0.00018082,2]
[369430994,1751572244643,-857.31,0.00018082,2]